Cogmind - Beta 15 @@@ ROGUE MODE // 2025.07.22 @ 19:04:25 Player: Kabino11 Result: Destroyed by G-47 Trooper with Particle Gun Performance ------------- Evolutions (2) 1000 Regions Visited (4) 800 Robots Destroyed (32) 160 Value Destroyed (908) 908 Prototype IDs (0) 0 Alien Tech Used (0) 0 Bonus (208) 208 TOTAL SCORE: 3076 Bonus ------- High Alert Combat Kills 8 Entered Garrisons 200 Cogmind --------- Core Integrity 0/550 Matter 106/300 Energy 74/100 System Corruption 0% Temperature Warm (187) Movement Rolling (110) Ox2 Location -8/Garrison Parts ------- > --- POWER (2) -------- (None) > --- PROPULSION (3) --- Wheel > --- UTILITY (3) ------ Large Storage Unit > --- WEAPON (3) ------- Katana > --- INVENTORY (15) --- Heat Sink Peak State ------------ > --- POWER ------------ Ion Engine Light Ion Engine > --- PROPULSION ------- Light Treads Light Treads Light Treads > --- UTILITY ---------- Large Storage Unit Hardlight Generator Hacking Suite > --- WEAPON ----------- Light Cannon Light Cannon Mini Grenade Launcher > --- INVENTORY -------- Light Treads Light Treads Wheel Heat Sink Assault Rifle Assault Rifle Heavy Assault Rifle Light Cannon Grenade Launcher [Rating: 17] Favorites ----------- Power Ion Engine Engine Ion Engine Propulsion Light Treads Treads Light Treads Wheel Wheel Utility Hacking Suite Device Hardlight Generator Storage Large Storage Unit Processor Visual Processing Unit Hackware Hacking Suite Weapon Light Cannon Ballistic Gun Assault Rifle Ballistic Cannon Light Cannon Launcher Mini Grenade Launcher Slashing Weapon Katana Build | -11 -10 -9 -8 -8 ------- Run | Yrd Mat Mat Mat Gar Slots Evolved 4 | . . 2 2 . Power 1 | . . . 1 . Propulsion 1 | . . 1 . . Utility 1 | . . 1 . . Weapon 1 | . . . 1 . Parts Attached 22 | 6 5 4 2 5 Power 2 | 1 1 . . . Engine 2 | 1 1 . . . Core . | . . . . . Reactor . | . . . . . Propulsion 6 | 2 . 2 . 2 Treads 5 | 2 . 2 . 1 Leg . | . . . . . Wheel 1 | . . . . 1 Hover . | . . . . . Flight . | . . . . . Utility 5 | 1 2 1 1 . Device 1 | . . . 1 . Storage 2 | 1 1 . . . Processor 1 | . . 1 . . Hackware 1 | . 1 . . . Protection . | . . . . . Artifact . | . . . . . Weapon 9 | 2 2 1 1 3 Energy Gun . | . . . . . Energy Cannon . | . . . . . Ballistic Gun 3 | 2 . . . 1 Ballistic Cannon 3 | . 1 . 1 1 Launcher 2 | . 1 1 . . Special Weapon . | . . . . . Impact Weapon . | . . . . . Slashing Weapon 1 | . . . . 1 Piercing Weapon . | . . . . . Special Melee Weapon . | . . . . . Unidentified Prototypes . | . . . . . Parts Lost 15 | . . . . 15 Power 2 | . . . . 2 Propulsion 4 | . . . . 4 Utility 2 | . . . . 2 Weapon 7 | . . . . 7 Highest Loss Streak 15 | . . . . 15 To Critical Strikes . | . . . . . Average Backups 7 | 2 5 9 10 8 Power . | . 1 1 1 . Propulsion 2 | 1 1 2 3 2 Utility . | . . 1 1 1 Weapon 3 | . 2 5 5 4 Tool/Special . | . . . . . Unused Backups 4 | . 2 1 . 1 Power 1 | . 1 . . . Propulsion 2 | . 1 1 . . Utility 1 | . . . . 1 Weapon . | . . . . . Tool/Special . | . . . . . Average Slot Usage (%) 89 | . 92 90 90 80 Engine 11 | . 14 11 9 7 Treads 26 | . 28 27 27 22 Device 2 | . . . 4 8 Storage 11 | . 14 11 9 9 Processor 3 | . . 7 4 . Hackware 9 | . 7 11 9 9 Ballistic Gun 1 | . 3 . . 1 Ballistic Cannon 12 | . 11 11 18 15 Launcher 10 | . 12 11 9 6 Peak Build Rating 17 | 6 9 14 16 17 Average Rating 10 | 4 7 12 15 14 On Entrance 9 | . 6 9 14 16 Naked Turns . | . . . . . Heaviest Build 37 | 12 31 31 37 37 Greatest Support 60 | 40 40 60 60 60 Greatest Overweight (x) 6 | . . . . 6 Average Overweight (x) . | . . . . . Largest Inventory Capacity 15 | 8 15 15 15 15 Average Capacity 12 | 7 9 15 15 15 Most Carried 11 | 4 7 11 11 10 Average Carried 7 | 2 5 9 10 8 Final Capacity 15 | 8 15 15 15 15 Final Carried 11 | 3 7 11 10 1 Class Distribution -------------------- 63% | Mutant 19% | Scavenger-Mutant 17% | Tank Dominant Class ---------------- Mutant | -10/Materials Scavenger-Mutant | -9/Materials Tank | -8/Materials Tank | -8/Garrison Resources | -11 -10 -9 -8 -8 ----------- Run | Yrd Mat Mat Mat Gar Matter Collected 746 | 185 168 346 . 47 Remotely . | . . . . . Salvage Created 684 | . 161 411 . 112 Parts 61 | . 14 35 . 12 Haulers Intercepted 1 | . . 1 . . Recyclers Shooed . | . . . . . Parts Field Recycled . | . . . . . Retrieved Matter . | . . . . . Parts Self-Destructed . | . . . . . Prevented . | . . . . . Kills | -11 -10 -9 -8 -8 ------- Run | Yrd Mat Mat Mat Gar Combat Hostiles Destroyed 26 | . 6 13 . 7 Guns 1 | . . . . 1 Cannons 6 | . 2 2 . 2 AOE 19 | . 4 11 . 4 Classes Destroyed 9 | . 2 7 . . Builder 1 | . . 1 . . Hauler 1 | . . 1 . . Recycler 1 | . . 1 . . Operator 2 | . 1 1 . . Watcher 1 | . . 1 . . Swarmer 7 | . . 3 . 4 Grunt 15 | . 6 7 . 2 Brawler 1 | . . 1 . . Sentry 3 | . . 2 . 1 Best Kill Streak 10 | . 3 10 . 4 Combat Bots Only 8 | . 3 8 . 4 Max Kills in Single Turn 4 | . 1 4 . 1 Gunslinging . | . . . . . Exploded 3 | . 1 3 . 1 Melee . | . . . . . Uniques/NPCs Destroyed . | . . . . . Combat | -11 -10 -9 -8 -8 -------- Run | Yrd Mat Mat Mat Gar Hostile Shots Fired 248 | . 11 27 2 208 Missed 67 | . 5 9 1 52 Hits 181 | . 6 18 1 156 Melee 3 | . . . . 3 Projectile 178 | . 6 18 1 153 Critical Strikes 9 | . . . . 9 Damage Taken 2443 | . 93 247 15 2088 Core 654 | . 47 42 . 565 Absorbed by Shields 216 | . . . . 216 Regen/Repaired (Parts) 14 | . 14 . . . Core Remaining (%) 90 | 100 81 89 . . Volleys Fired 43 | . 10 17 . 16 Largest 3 | . 2 2 . 3 Hottest 90 | . 60 60 . 90 Shots Fired 90 | . 20 33 . 37 Gun 8 | . . . . 8 Cannon 50 | . 10 17 . 23 Launcher 32 | . 10 16 . 6 Special . | . . . . . Kinetic 58 | . 10 17 . 31 Thermal . | . . . . . Explosive 32 | . 10 16 . 6 Electromagnetic . | . . . . . Robot Hit Streak 4 | . 3 4 . 4 Robot Miss Streak 4 | . 3 2 . 4 Penetration Max . | . . . . . Secondary Targets . | . . . . . Shots Hit Robots 37 | . 8 12 . 17 Core Hits 52 | . 10 24 . 18 Critical Kills . | . . . . . Critical Parts Destroyed 1 | . . . . 1 Critical Strikes 1 | . . . . 1 Destroy 1 | . . . . 1 Melee Attacks . | . . . . . Impact . | . . . . . Slashing . | . . . . . Piercing . | . . . . . Sneak Attacks . | . . . . . Combat Hostiles . | . . . . . Follow-up Attacks . | . . . . . Damage Inflicted 2330 | . 586 1085 . 659 Guns 76 | . . . . 76 Cannons 412 | . 74 188 . 150 Explosions 1837 | . 512 896 . 429 Melee . | . . . . . Ramming 5 | . . 1 . 4 Kinetic 488 | . 74 188 . 226 Thermal . | . . . . . Explosive 1837 | . 512 896 . 429 Electromagnetic . | . . . . . Impact . | . . . . . Slashing . | . . . . . Piercing . | . . . . . Highest Corruption . | . . . . . Average Corruption . | . . . . . Corruption Purged . | . . . . . Corruption Blocked . | . . . . . Overload Shots . | . . . . . Overflow Damage 18 | . 8 10 . . Projectiles 2 | . . 2 . . Explosions 16 | . 8 8 . . Melee . | . . . . . Knockbacks 3 | . . 2 . 1 Impact . | . . . . . Kinetic 3 | . . 2 . 1 Secondary . | . . . . . Self-Inflicted Damage 57 | . 28 29 . . Shots 4 | . 3 1 . . Rammed 2 | . . . . 2 Targets Rammed 3 | . . 1 . 2 Kicked . | . . . . . Crushed 1 | . . 1 . . Highest Temperature 242 | . 24 6 . 242 Average Temperature 56 | . 18 3 . 71 Received Heat Transfer 1308 | . 36 84 9 1179 Siege Activations . | . . . . . Martial Activations . | . . . . . Shielding Activations . | . . . . . Robots Disrupted . | . . . . . Combat Hostiles . | . . . . . Robots Corrupted . | . . . . . Combat Hostiles . | . . . . . Parts Fried . | . . . . . Impact Corruptions . | . . . . . Robots Melted . | . . . . . Combat Hostiles . | . . . . . Parts Melted . | . . . . . Heat Transferred . | . . . . . Parts Sabotaged . | . . . . . Parts Stolen . | . . . . . Parts Stripped . | . . . . . Power Chain Reactions . | . . . . . Alert | -11 -10 -9 -8 -8 ------- Run | Yrd Mat Mat Mat Gar Maximum Alert Level 2 | . . 2 . . Low Security (%) 80 | 100 100 48 100 100 Level 1 17 | . . 47 . . Level 2 1 | . . 3 . . Level 3 . | . . . . . Level 4 . | . . . . . Level 5 . | . . . . . High Security . | . . . . . Max Security . | . . . . . Peak Influence 420 | . 198 420 172 185 Initial 172 | . . 74 172 105 Average 134 | . 70 217 167 126 Influence Increases 977 | . 280 526 . 171 Destroy 0b10 Robot/C 520 | . 120 260 . 140 Destroy 0b10 Robot/NC 30 | . 5 25 . . Destroy Leader 94 | . 30 64 . . Successful Hack 12 | . 12 . . . Disable Machine 105 | . 60 45 . . Destroy Structure 216 | . 53 132 . 31 Influence Decreases 851 | . 102 294 248 207 Entered New Map 399 | . . 104 238 57 Time Decay 302 | . 102 190 10 . Lost Part 150 | . . . . 150 Squads Dispatched 6 | . 4 2 . . Investigation 2 | . 1 1 . . Extermination . | . . . . . Reinforcement 4 | . 3 1 . . Assault . | . . . . . Garrison . | . . . . . Intercept . | . . . . . Searches Triggered . | . . . . . Construction Impeded . | . . . . . Haulers Reinforced . | . . . . . Active Scanning Responses . | . . . . . Cargo Convoy Interrupts . | . . . . . Stealth | -11 -10 -9 -8 -8 --------- Run | Yrd Mat Mat Mat Gar Distress Signals . | . . . . . Communications Jammed . | . . . . . Distress Signals . | . . . . . Times Spotted 36 | . 7 16 1 12 Peak Tracking Total 10 | . 3 4 2 10 Tactical Retreats . | . . . . . Traps | -11 -10 -9 -8 -8 ------- Run | Yrd Mat Mat Mat Gar Traps Triggered 1 | . . 1 . . Indirectly . | . . . . . Trap Hack Attempts . | . . . . . Triggered . | . . . . . Disarmed . | . . . . . Reprogrammed . | . . . . . Reused . | . . . . . Traps Extracted . | . . . . . Installed . | . . . . . Triggered . | . . . . . Machines | -11 -10 -9 -8 -8 ---------- Run | Yrd Mat Mat Mat Gar Machines Disabled 7 | . 4 3 . . Max in Single Turn 2 | . 2 2 . . Machines Repaired . | . . . . . Machines Dismantled . | . . . . . Machines Sabotaged . | . . . . . Overloaded Fab Kills . | . . . . . Hacking | -11 -10 -9 -8 -8 --------- Run | Yrd Mat Mat Mat Gar Machines Accessed 4 | . 3 . 1 . Terminals 1 | . 1 . . . Fabricators . | . . . . . Repair Stations 1 | . 1 . . . Recycling Units 1 | . 1 . . . Scanalyzers . | . . . . . Garrison Access 1 | . . . 1 . Total Hacks 8 | . 7 . 1 . Successful 7 | . 6 . 1 . Failed 1 | . 1 . . . Catastrophic . | . . . . . Database Lockouts . | . . . . . Manual . | . . . . . Terminals 1 | . 1 . . . Fabricators . | . . . . . Repair Stations 3 | . 3 . . . Recycling Units 3 | . 3 . . . Scanalyzers . | . . . . . Garrison Access 1 | . . . 1 . Terminal Hacks 1 | . 1 . . . Record 1 | . 1 . . . Fabricator Hacks . | . . . . . Repair Station Hacks 3 | . 3 . . . Scan Component 2 | . 2 . . . Repair 1 | . 1 . . . Recycling Unit Hacks 2 | . 2 . . . Recycle Component 1 | . 1 . . . Report Inventory 1 | . 1 . . . Scanalyzer . | . . . . . Garrison Access Hacks 1 | . . . 1 . Unlock Access 1 | . . . 1 . Unauthorized Hacks . | . . . . . Terminals . | . . . . . Fabricators . | . . . . . Repair Stations . | . . . . . Recycling Units . | . . . . . Scanalyzers . | . . . . . Garrison Access . | . . . . . Data Cores Recovered . | . . . . . Used . | . . . . . Hacking Detections 3 | . 3 . . . Full Trace Events 2 | . 2 . . . Feedback Events . | . . . . . Feedback Blocked . | . . . . . Robot Schematics Acquired . | . . . . . Robots Built . | . . . . . Authchips . | . . . . . Time . | . . . . . Total Robot Build Rating . | . . . . . Part Schematics Acquired . | . . . . . Parts Built . | . . . . . Authchips . | . . . . . Time . | . . . . . Total Part Build Rating . | . . . . . Parts Repaired 1 | . 1 . . . Time 26 | . 26 . . . Parts Recycled 1 | . 1 . . . Recycled Matter . | . . . . . Retrieved Matter . | . . . . . Retrieved Components . | . . . . . Parts Scanalyzed . | . . . . . Part Schematics Acquired . | . . . . . Parts Damaged . | . . . . . Bothacking | -11 -10 -9 -8 -8 ------------ Run | Yrd Mat Mat Mat Gar Used RIF Installer . | . . . . . Robots Hacked . | . . . . . Non-combat . | . . . . . Combat . | . . . . . Robot Hacks Applied . | . . . . . Relay Couplers Released . | . . . . . Fabnet Peak Effective % . | . . . . . Robots Rewired . | . . . . . Allies Hacked . | . . . . . Hacks Repelled . | . . . . . Allies | -11 -10 -9 -8 -8 -------- Run | Yrd Mat Mat Mat Gar Total Allies . | . . . . . Largest Group . | . . . . . Highest-Rated Group . | . . . . . Highest-Rated Ally . | . . . . . Total Orders . | . . . . . Ally Attacks . | . . . . . Total Damage . | . . . . . Kills . | . . . . . Allies Corrupted . | . . . . . Allies Melted . | . . . . . Intel | -11 -10 -9 -8 -8 ------- Run | Yrd Mat Mat Mat Gar Active Infowar (turns) 272 | . . 260 12 . Optics 272 | . . 260 12 . Robot Analysis Total . | . . . . . Derelict Logs Recovered . | . . . . . Drone Launches . | . . . . . Drone Recoveries . | . . . . . Exploration | -11 -10 -9 -8 -8 ------------- Run | Yrd Mat Mat Mat Gar Turns Passed 1007 | 82 310 380 33 202 Spaces Moved 508 | 51 164 195 19 79 Core 13 | 12 . . . 1 Treads 494 | 39 164 195 19 77 Legs . | . . . . . Wheels 1 | . . . . 1 Hover . | . . . . . Flight . | . . . . . Fastest Speed 50 | 50 160 160 160 110 Average Speed 157 | 134 160 160 160 161 Slowest Speed 350 | 160 160 160 160 350 Overloaded Moves . | . . . . . Propulsion Burnouts . | . . . . . Robots Hopped . | . . . . . Potential Cave-ins . | . . . . . Cave-ins Triggered . | . . . . . Exploration Rate (%) 17 | 3 42 20 3 20 Regions Visited 4 Branch Regions . Pre-discovered Areas . | . . . . . Known Exits Taken 1 | . . . 1 . Unknown Exits Taken 3 | 1 1 1 . . Scrap Searched . | . . . . . Spaces Dug . | . . . . . Terrain Destroyed 227 | . 50 158 . 19 Melee . | . . . . . Projectile . | . . . . . AOE 227 | . 50 158 . 19 Terrain Rammed . | . . . . . Walls Destroyed . | . . . . . Machines Disabled . | . . . . . Actions | -11 -10 -9 -8 -8 --------- Run | Yrd Mat Mat Mat Gar Total 627 | 65 190 230 21 121 Wait 18 | . 3 2 . 13 Move 504 | 50 163 194 18 79 Hop . | . . . . . Pick Up 27 | 9 8 8 1 1 Fast Attach . | . . . . . Attach 21 | 6 1 3 1 10 Detach 1 | . . 1 . . Swap 7 | . 4 2 1 . Drop 3 | . 1 2 . . Fire 43 | . 10 17 . 16 Melee . | . . . . . Ram . | . . . . . Kick . | . . . . . Crush 3 | . . 1 . 2 Escape Stasis . | . . . . . Rewire . | . . . . . Trap . | . . . . . Miscellaneous . | . . . . . Route ------- -11/Scrapyard -10/Materials (discovered 2 exits: [*Mat] / [*Sub]) -9/Materials -8/Materials -8/Garrison History --------- Turn | Location | Event 2 | -11/Scrapyard | Met Revision 17 40 | -11/Scrapyard | Discovered new exit (range 15) 83 | -11/Scrapyard | Entered Materials 84 | -10/Materials | Met a group of wandering Federalists 174 | -10/Materials | Discovered new exit (range 12) 255 | -10/Materials | Discovered new exit (range 10) 306 | -10/Materials | Build established: Mutant 357 | -10/Materials | Repaired Heat Sink 393 | -10/Materials | Entered another Materials area 393 | -9/Materials | Evolved 2 slots: Propulsion x1, Utility x1 573 | -9/Materials | Discovered new exit (range 17) 602 | -9/Materials | Destroyed 8 combat bots 773 | -9/Materials | Entered another Materials area 773 | -8/Materials | Evolved 2 slots: Power x1, Weapon x1 796 | -8/Materials | Identified exit to Garrison 806 | -8/Materials | Entered Garrison 874 | -8/Garrison | Triggered checkpoint 941 | -8/Garrison | Triggered checkpoint 956 | -8/Garrison | Triggered checkpoint 983 | -8/Garrison | Core integrity fell below 50% 1001 | -8/Garrison | Core integrity fell below 20% 1008 | -8/Garrison | Destroyed by G-47 Trooper with Particle Gun Last Messages --------------- S-10 Pest destroyed. Lgt. Cannon destroyed. G-47 Trooper destroyed. Lgt. Treads destroyed. Grenade Launcher destroyed. Y-45 Defender destroyed. Critical hit (Burn: +37). G-47 Trooper knocked back. Critical hit (Burn: +37). Assault Rifle destroyed. G-47 Trooper suffers critical hit (Destroy). Destroyed Aluminum Leg. G-47 Trooper destroyed. Hardlight Generator destroyed. Assault Rifle destroyed. Critical hit (Burn: +37). Lgt. Cannon destroyed. Critical hit (Burn: +37). Acquired Katana. Hacking Suite destroyed. Map ----- +----------------------------------------------------+ | ?????????????????????????????????????????????????? | | ?????????????????????????????????????????????????? | | ?????????????????????????????????????????????????? | | ?????????????????????????????????????????????????? | | ?????????????????????????????????????????????????? | | ?????????????????????????????????????????????????? | | ?????????????????????????????????????????????????? | | ?????????????????????????????????????????????????? | | ????????????????????????###??????????????????????? | | ???????????????????????? ??????????????????????? | | ???????????????????????? ??????????????????????? | | ????????????????????????# ??????????????????????? | | ????????????????????????# ??????????????????????? | | ????????????????????????# #?????????????????????? | | ????????????????????????# #?????????????????????? | | ????????????????????????# #?????????????????????? | | ????????????????????????# #?????????#???????????? | | ????????????????????????# #??????? #???????????? | | ???????????????????????## ##""""## ##??????????? | | ??????????????# ####### #??????????? | | ??????????????# ?????????? | | ?????????????????? ?????????? | | ???????????????????????# #? ## #??????????? | | ?????????????????????### ## ###????????? | | ?????????????????????# #????????? | | ?????????????????????# *%@ = #????????? | | ?????????????????????# g *%g #????????? | | ?????????????????????# %g[g!g #????????? | | ?????????????????????### [## ##^^^###????????? | | ??????????????????????# = #####??????? | | ?????????????????????? ?????? | | ?????????????????????? = =% ?????? | | ?????????????????????## = ###????????? | | ??????????????????????## # # #??????????? | | ???????????????????????# ## [%=## #?????????? | | ???????????????????????## #? # ##? ????????? | | ????????????????????????# #? #*#????##??????????? | | ????????????????????????# #??#?#????????????????? | | ????????????????????????# #?????????????????????? | | ????????????????????????# #?????????????????????? | | #??###################### #?????????????????????? | | " ## #?????????????????????? | | #?????????????????????? | | " ## ######################?????????????????????? | | ???# #??????????????????????????????????????????? | | ???# #??????????????????????????????????????????? | | ???# #??????????????????????????????????????????? | | ???# #??????????????????????????????????????????? | | ???# #??????????????????????????????????????????? | | ???# #??????????????????????????????????????????? | +----------------------------------------------------+ Best States ------------- Heat Dissipation 31 Energy Generation 10 Energy Capacity 250 Matter Stores 293 Matter Capacity 300 Sight Range 18 Terrain Scan Density 10 Evasion (%) 50 Recoil Reduction 3 Offensive Hacking 10 Item Schematics ----------------- None Robot Schematics ------------------ None Fabricated ------------ Nothing Repaired ---------- Heat Sink | 53% | -10/Materials Alien Tech Used ----------------- None Achievements -------------- Loot Pinata Part-time Mechanic Challenges ------------ None Game ------ Seed SensorImpulseArchive Manual? 0 Play Time 00:28:44 Cumulative 3.0 hours Start 2025.07.22 @ 18:35:12 End 2025.07.22 @ 19:04:25 Sessions 1 Manual Loads 0 Difficulty Rogue Special Mode None Game No. 4 Rogue 4 Adventurer 0 Explorer 0 Win Type - Total 0 Types 0/0/0/0/0/0/0/0/0/0 Lore% 5 Gallery% 4 Achievement% 5 Wizard Run 0 Options --------- Layout 1 ASCII 0 Keyboard 0 Movement Numpad Keybinds 0 Fullscreen 1 Font 32/SmallcapsGlow Map View 50x35 Zoom Use 0% Tactical HUD 0 Map Filters NONE Filters NONE Steam 1 RUN: 2658f50e-80f2-444b-bc9f-a214f84f0fc8